[Event "*** SCC Grand Prix: Titled Tuesday Blitz"]
[Site "Chess.com"]
[Date "2020.09.29"]
[Round "8"]
[White "UCantHandleDenker"]
[Black "LogoCzar"]
[Result "0-1"]
[WhiteElo "2555"]
[BlackElo "2441"]
[TimeControl "180+1"]
[EndTime "11:34:14 PDT"]
[Termination "LogoCzar won by checkmate"]

1. Nf3 {[%clk 0:02:57.9]} 1... d5 {[%clk 0:02:57.9]} 2. g3 {[%clk 0:02:58]} 2...
Nf6 {[%clk 0:02:55.2]} 3. Bg2 {[%clk 0:02:58.5]} 3... g6 {[%clk 0:02:55.3]} 4.
O-O {[%clk 0:02:59]} 4... Bg7 {[%clk 0:02:55.1]} 5. d3 {[%clk 0:02:54.1]} 5...
O-O {[%clk 0:02:54.9]} 6. Nbd2 {[%clk 0:02:54.7]} 6... c6 {[%clk 0:02:52.6]} 7.
e4 {[%clk 0:02:54.6]} 7... dxe4 {[%clk 0:02:52.3]} 8. dxe4 {[%clk 0:02:54.1]}
8... Qc7 {[%clk 0:02:52.1]} 9. Qe2 {[%clk 0:02:53.5]} 9... e5 {[%clk 0:02:52.1]}
10. a4 {[%clk 0:02:52.3]} 10... h6 {[%clk 0:02:47.7]} 11. b3 {[%clk 0:02:50.1]}
11... Be6 {[%clk 0:02:47.2]} 12. Bb2 {[%clk 0:02:48.8]} 12... Nfd7 {[%clk
0:02:47.4]} 13. Nc4 {[%clk 0:02:41.7]} 13... Na6 {[%clk 0:02:45.3]} 14. Rad1
{[%clk 0:02:35.7]} 14... Rfd8 {[%clk 0:02:44.4]} 15. Nh4 {[%clk 0:02:31.2]}
15... Nf8 {[%clk 0:02:32.4]} 16. Bc3 {[%clk 0:02:25.7]} 16... Rxd1 {[%clk
0:02:28.9]} 17. Rxd1 {[%clk 0:02:24.5]} 17... Rd8 {[%clk 0:02:28.4]} 18. Rxd8
{[%clk 0:02:12.9]} 18... Qxd8 {[%clk 0:02:28.2]} 19. Nxe5 {[%clk 0:02:12.1]}
19... Qc7 {[%clk 0:02:17.4]} 20. f4 {[%clk 0:02:08.7]} 20... g5 {[%clk
0:02:15.1]} 21. Nhf3 {[%clk 0:02:06.9]} 21... gxf4 {[%clk 0:02:12.4]} 22. gxf4
{[%clk 0:02:05.2]} 22... f5 {[%clk 0:02:12.6]} 23. exf5 {[%clk 0:01:36.1]} 23...
Bxf5 {[%clk 0:02:11.3]} 24. Nd4 {[%clk 0:01:36.8]} 24... Bc8 {[%clk 0:02:04.5]}
25. Qc4+ {[%clk 0:01:33.5]} 25... Kh8 {[%clk 0:01:56]} 26. Nf7+ {[%clk
0:01:30.4]} 26... Kh7 {[%clk 0:01:54.3]} 27. Be4+ {[%clk 0:01:30.1]} 27... Ng6
{[%clk 0:01:54.2]} 28. f5 {[%clk 0:01:21.4]} 28... Bxd4+ {[%clk 0:01:40.9]} 29.
Bxd4 {[%clk 0:01:18.2]} 29... Nh4 {[%clk 0:01:40.5]} 30. f6+ {[%clk 0:01:11.7]}
30... Bf5 {[%clk 0:01:39.9]} 31. Qd3 {[%clk 0:00:51.5]} 31... Qf4 {[%clk
0:01:29.5]} 32. Bxf5+ {[%clk 0:00:44.8]} 32... Nxf5 {[%clk 0:01:25.6]} 33. Bf2
{[%clk 0:00:29.6]} 33... Nb4 {[%clk 0:01:17.2]} 34. Qd7 {[%clk 0:00:28.5]} 34...
Qg4+ {[%clk 0:01:14.8]} 35. Bg3 {[%clk 0:00:27]} 35... Qd4+ {[%clk 0:00:55.4]}
36. Qxd4 {[%clk 0:00:26.6]} 36... Nxd4 {[%clk 0:00:52.6]} 37. Nd6 {[%clk
0:00:24.3]} 37... Ne2+ {[%clk 0:00:50.1]} 38. Kf2 {[%clk 0:00:22.2]} 38... Nxg3
{[%clk 0:00:49.5]} 39. hxg3 {[%clk 0:00:21.6]} 39... Nxc2 {[%clk 0:00:46.7]} 40.
Nxb7 {[%clk 0:00:21.6]} 40... Kg6 {[%clk 0:00:46]} 41. Nd8 {[%clk 0:00:21.6]}
41... Nd4 {[%clk 0:00:42.4]} 42. f7 {[%clk 0:00:20]} 42... Kg7 {[%clk
0:00:41.9]} 43. b4 {[%clk 0:00:19.8]} 43... a6 {[%clk 0:00:35]} 44. a5 {[%clk
0:00:17.5]} 44... Nc2 {[%clk 0:00:33.6]} 45. Nxc6 {[%clk 0:00:16.7]} 45... Kxf7
{[%clk 0:00:33.3]} 46. Kf3 {[%clk 0:00:16.6]} 46... Ke6 {[%clk 0:00:30.9]} 47.
Ke4 {[%clk 0:00:13.2]} 47... Kd6 {[%clk 0:00:31]} 48. Kd3 {[%clk 0:00:12.4]}
48... Ne1+ {[%clk 0:00:28.7]} 49. Ke2 {[%clk 0:00:12.4]} 49... Kxc6 {[%clk
0:00:28.9]} 50. Kxe1 {[%clk 0:00:12.4]} 50... Kb5 {[%clk 0:00:29.4]} 51. Ke2
{[%clk 0:00:08.8]} 51... Kxb4 {[%clk 0:00:29.8]} 52. Kf3 {[%clk 0:00:09.7]}
52... Kxa5 {[%clk 0:00:29.9]} 53. Kg4 {[%clk 0:00:10.6]} 53... Kb4 {[%clk
0:00:30]} 54. Kh5 {[%clk 0:00:11.5]} 54... a5 {[%clk 0:00:30.4]} 55. Kxh6 {[%clk
0:00:12.4]} 55... a4 {[%clk 0:00:30.9]} 56. g4 {[%clk 0:00:13.3]} 56... a3
{[%clk 0:00:31.4]} 57. g5 {[%clk 0:00:14.2]} 57... a2 {[%clk 0:00:32]} 58. g6
{[%clk 0:00:15.1]} 58... a1=Q {[%clk 0:00:32.2]} 59. g7 {[%clk 0:00:15]} 59...
Qh1+ {[%clk 0:00:25.8]} 60. Kg6 {[%clk 0:00:14.9]} 60... Qg2+ {[%clk 0:00:23.1]}
61. Kf7 {[%clk 0:00:14]} 61... Qf3+ {[%clk 0:00:23.3]} 62. Ke7 {[%clk
0:00:13.4]} 62... Qg4 {[%clk 0:00:23.4]} 63. Kf7 {[%clk 0:00:12.9]} 63... Qf5+
{[%clk 0:00:23.5]} 64. Ke7 {[%clk 0:00:13.2]} 64... Qg6 {[%clk 0:00:23.3]} 65.
Kf8 {[%clk 0:00:13.4]} 65... Qf6+ {[%clk 0:00:23.6]} 66. Kg8 {[%clk 0:00:13.2]}
66... Kc5 {[%clk 0:00:24]} 67. Kh7 {[%clk 0:00:13.8]} 67... Qf7 {[%clk
0:00:24.1]} 68. Kh8 {[%clk 0:00:12.7]} 68... Qh5+ {[%clk 0:00:24.4]} 69. Kg8
{[%clk 0:00:13.3]} 69... Kd6 {[%clk 0:00:24.6]} 70. Kf8 {[%clk 0:00:13.3]} 70...
Qf5+ {[%clk 0:00:21.8]} 71. Ke8 {[%clk 0:00:13.5]} 71... Qg6+ {[%clk 0:00:18.8]}
72. Kf8 {[%clk 0:00:13.9]} 72... Qf6+ {[%clk 0:00:18.8]} 73. Kg8 {[%clk
0:00:14.4]} 73... Ke6 {[%clk 0:00:17.3]} 74. Kh7 {[%clk 0:00:13.8]} 74... Qf7
{[%clk 0:00:17]} 75. Kh8 {[%clk 0:00:12.2]} 75... Qh5+ {[%clk 0:00:16.9]} 76.
Kg8 {[%clk 0:00:12.8]} 76... Kf6 {[%clk 0:00:15.3]} 77. Kf8 {[%clk 0:00:13.1]}
77... Qf7# {[%clk 0:00:15.3]} 0-1

[Event "*** SCC Grand Prix: Titled Tuesday Blitz"]
[Site "Chess.com"]
[Date "2020.09.29"]
[Round "8"]
[White "zmeeed67"]
[Black "esrosenberg"]
[Result "1-0"]
[WhiteElo "2380"]
[BlackElo "2217"]
[TimeControl "180+1"]
[EndTime "11:34:18 PDT"]
[Termination "zmeeed67 won by checkmate"]

1. e4 {[%clk 0:03:00.9]} 1... e5 {[%clk 0:02:43.7]} 2. Nf3 {[%clk 0:03:00.2]}
2... Nc6 {[%clk 0:02:43.7]} 3. c3 {[%clk 0:03:00.3]} 3... Nf6 {[%clk 0:02:39.8]}
4. d4 {[%clk 0:03:00.1]} 4... exd4 {[%clk 0:02:32.8]} 5. e5 {[%clk 0:02:59.7]}
5... Ne4 {[%clk 0:02:29]} 6. cxd4 {[%clk 0:02:57.1]} 6... Bb4+ {[%clk
0:02:23.3]} 7. Nbd2 {[%clk 0:02:56.8]} 7... O-O {[%clk 0:02:22.3]} 8. Be2 {[%clk
0:02:55.8]} 8... d6 {[%clk 0:02:20.1]} 9. O-O {[%clk 0:02:35.6]} 9... Nxd2
{[%clk 0:02:13.9]} 10. Bxd2 {[%clk 0:02:35.3]} 10... Bxd2 {[%clk 0:02:11.5]} 11.
Qxd2 {[%clk 0:02:33.4]} 11... dxe5 {[%clk 0:02:11.8]} 12. d5 {[%clk 0:02:31.4]}
12... Ne7 {[%clk 0:01:50.2]} 13. Bc4 {[%clk 0:02:22.5]} 13... Qd6 {[%clk
0:01:39.2]} 14. Rfe1 {[%clk 0:02:10.2]} 14... f6 {[%clk 0:01:39.2]} 15. h3
{[%clk 0:01:59.6]} 15... Bf5 {[%clk 0:01:27]} 16. Rad1 {[%clk 0:01:58.6]} 16...
Rad8 {[%clk 0:01:24.5]} 17. Bb3 {[%clk 0:01:57.1]} 17... Bg6 {[%clk 0:01:22.8]}
18. Qe3 {[%clk 0:01:55]} 18... a6 {[%clk 0:01:21.8]} 19. Qa7 {[%clk 0:01:39.4]}
19... Rb8 {[%clk 0:01:10]} 20. Nd2 {[%clk 0:01:33.5]} 20... Kh8 {[%clk 0:01:02]}
21. Nc4 {[%clk 0:01:30.6]} 21... Qb4 {[%clk 0:00:56.2]} 22. Kf1 {[%clk 0:01:02]}
22... b5 {[%clk 0:00:31.9]} 23. Ne3 {[%clk 0:00:57.2]} 23... Qd6 {[%clk
0:00:24.2]} 24. Ng4 {[%clk 0:00:43.4]} 24... Rfd8 {[%clk 0:00:12.4]} 25. Qe3
{[%clk 0:00:42.6]} 25... Qb6 {[%clk 0:00:11.3]} 26. Qd2 {[%clk 0:00:41.9]} 26...
Rd6 {[%clk 0:00:10]} 27. Qc3 {[%clk 0:00:40.5]} 27... a5 {[%clk 0:00:09.2]} 28.
a3 {[%clk 0:00:39.3]} 28... b4 {[%clk 0:00:09.2]} 29. axb4 {[%clk 0:00:34.2]}
29... Qxb4 {[%clk 0:00:10.1]} 30. Qxc7 {[%clk 0:00:34]} 30... Nf5 {[%clk
0:00:05.4]} 31. Bc2 {[%clk 0:00:25.9]} 31... h5 {[%clk 0:00:05.4]} 32. Bxf5
{[%clk 0:00:23.3]} 32... Bxf5 {[%clk 0:00:05]} 33. Ne3 {[%clk 0:00:23.8]} 33...
Be4 {[%clk 0:00:04]} 34. Qf7 {[%clk 0:00:19.2]} 34... Rdb6 {[%clk 0:00:01.8]}
35. Qxh5+ {[%clk 0:00:18.7]} 35... Bh7 {[%clk 0:00:02.5]} 36. Nf5 {[%clk
0:00:15.7]} 36... Qxb2 {[%clk 0:00:01.6]} 37. Ne7 {[%clk 0:00:15.1]} 37... Qb5+
{[%clk 0:00:01.5]} 38. Kg1 {[%clk 0:00:14.3]} 38... Qe8 {[%clk 0:00:01.8]} 39.
Qxe8+ {[%clk 0:00:11.1]} 39... Rxe8 {[%clk 0:00:02.7]} 40. d6 {[%clk 0:00:10.9]}
40... Rbb8 {[%clk 0:00:02.5]} 41. d7 {[%clk 0:00:10.7]} 41... Rxe7 {[%clk
0:00:02.4]} 42. d8=Q+ {[%clk 0:00:10.3]} 42... Rxd8 {[%clk 0:00:03]} 43. Rxd8+
{[%clk 0:00:10.1]} 43... Bg8 {[%clk 0:00:03.9]} 44. Ra8 {[%clk 0:00:10.7]} 44...
Kh7 {[%clk 0:00:04.6]} 45. Rc1 {[%clk 0:00:10.5]} 45... e4 {[%clk 0:00:05.5]}
46. Rxa5 {[%clk 0:00:10.3]} 46... g6 {[%clk 0:00:04.8]} 47. Re1 {[%clk
0:00:09.8]} 47... f5 {[%clk 0:00:05.2]} 48. Rc1 {[%clk 0:00:09.8]} 48... f4
{[%clk 0:00:05.5]} 49. Rac5 {[%clk 0:00:10.1]} 49... e3 {[%clk 0:00:05.6]} 50.
fxe3 {[%clk 0:00:09.7]} 50... fxe3 {[%clk 0:00:06.5]} 51. Rc7 {[%clk 0:00:09.7]}
51... Rxc7 {[%clk 0:00:05.6]} 52. Rxc7+ {[%clk 0:00:09.7]} 52... Kh6 {[%clk
0:00:06.5]} 53. Kf1 {[%clk 0:00:10]} 53... Bd5 {[%clk 0:00:05.9]} 54. g3 {[%clk
0:00:09.1]} 54... Bf3 {[%clk 0:00:05.7]} 55. Re7 {[%clk 0:00:09.4]} 55... e2+
{[%clk 0:00:05.7]} 56. Kf2 {[%clk 0:00:09.7]} 56... Bh5 {[%clk 0:00:05.9]} 57.
g4 {[%clk 0:00:09.8]} 57... Bxg4 {[%clk 0:00:05.5]} 58. hxg4 {[%clk 0:00:09.8]}
58... Kg5 {[%clk 0:00:06.4]} 59. Kg3 {[%clk 0:00:10.1]} 59... Kf6 {[%clk
0:00:05.4]} 60. Rxe2 {[%clk 0:00:10.4]} 60... g5 {[%clk 0:00:06.3]} 61. Re4
{[%clk 0:00:10.3]} 61... Kg6 {[%clk 0:00:06.6]} 62. Rc4 {[%clk 0:00:10.6]} 62...
Kf6 {[%clk 0:00:07.5]} 63. Rc6+ {[%clk 0:00:11]} 63... Kf7 {[%clk 0:00:08]} 64.
Rb6 {[%clk 0:00:10.4]} 64... Kg7 {[%clk 0:00:08.9]} 65. Kf3 {[%clk 0:00:10.9]}
65... Kf7 {[%clk 0:00:09.8]} 66. Ke4 {[%clk 0:00:11.5]} 66... Ke7 {[%clk
0:00:10.7]} 67. Kf5 {[%clk 0:00:11.9]} 67... Kf7 {[%clk 0:00:11.3]} 68. Kxg5
{[%clk 0:00:12.3]} 68... Ke7 {[%clk 0:00:11.4]} 69. Kf5 {[%clk 0:00:12.7]} 69...
Kd7 {[%clk 0:00:11.7]} 70. g5 {[%clk 0:00:12.9]} 70... Kc7 {[%clk 0:00:12.1]}
71. Re6 {[%clk 0:00:13.2]} 71... Kd7 {[%clk 0:00:12.5]} 72. g6 {[%clk
0:00:13.8]} 72... Kc7 {[%clk 0:00:13.4]} 73. g7 {[%clk 0:00:14.2]} 73... Kd7
{[%clk 0:00:14.3]} 74. g8=Q {[%clk 0:00:14.7]} 74... Kc7 {[%clk 0:00:15.2]} 75.
Qg7+ {[%clk 0:00:15.1]} 75... Kd8 {[%clk 0:00:15.7]} 76. Rh6 {[%clk 0:00:14.9]}
76... Ke8 {[%clk 0:00:15.9]} 77. Rh8# {[%clk 0:00:15.6]} 1-0

[Event "*** SCC Grand Prix: Titled Tuesday Blitz"]
[Site "Chess.com"]
[Date "2020.09.29"]
[Round "8"]
[White "The_Machine04"]
[Black "Shuvalov"]
[Result "1/2-1/2"]
[WhiteElo "2285"]
[BlackElo "2416"]
[TimeControl "180+1"]
[EndTime "11:34:18 PDT"]
[Termination "Game drawn - insufficient material"]

1. d4 {[%clk 0:03:00.9]} 1... d5 {[%clk 0:02:57.9]} 2. Bf4 {[%clk 0:02:59.9]}
2... c5 {[%clk 0:02:57.2]} 3. e3 {[%clk 0:02:58]} 3... Nc6 {[%clk 0:02:56.9]} 4.
c3 {[%clk 0:02:54]} 4... Nf6 {[%clk 0:02:56.7]} 5. Nf3 {[%clk 0:02:52]} 5... Qb6
{[%clk 0:02:55.8]} 6. Qb3 {[%clk 0:02:45.1]} 6... c4 {[%clk 0:02:55.1]} 7. Qc2
{[%clk 0:02:44.6]} 7... Bf5 {[%clk 0:02:54.4]} 8. Qc1 {[%clk 0:02:44.8]} 8... e6
{[%clk 0:02:53.9]} 9. Nbd2 {[%clk 0:02:44.2]} 9... h6 {[%clk 0:02:53.1]} 10. b3
{[%clk 0:02:40.6]} 10... cxb3 {[%clk 0:02:46.7]} 11. axb3 {[%clk 0:02:41.5]}
11... Rc8 {[%clk 0:02:46.1]} 12. Qb2 {[%clk 0:02:40.4]} 12... Qd8 {[%clk
0:02:39.3]} 13. Be2 {[%clk 0:02:35.5]} 13... Bd6 {[%clk 0:02:37]} 14. Bxd6
{[%clk 0:02:30.4]} 14... Qxd6 {[%clk 0:02:37.9]} 15. O-O {[%clk 0:02:29.8]}
15... O-O {[%clk 0:02:36]} 16. c4 {[%clk 0:02:27.4]} 16... a6 {[%clk 0:02:31.5]}
17. c5 {[%clk 0:02:26.2]} 17... Qe7 {[%clk 0:02:27]} 18. b4 {[%clk 0:02:25.4]}
18... Ne4 {[%clk 0:02:22.3]} 19. Nxe4 {[%clk 0:02:22.9]} 19... dxe4 {[%clk
0:02:20.5]} 20. Nd2 {[%clk 0:02:19.4]} 20... Rfd8 {[%clk 0:02:18.8]} 21. Nc4
{[%clk 0:02:13.7]} 21... e5 {[%clk 0:02:14.3]} 22. Nd6 {[%clk 0:02:09.7]} 22...
Rxd6 {[%clk 0:02:08.2]} 23. cxd6 {[%clk 0:02:10.6]} 23... Qxd6 {[%clk
0:02:08.5]} 24. dxe5 {[%clk 0:01:16.9]} 24... Nxe5 {[%clk 0:01:58.3]} 25. Rfd1
{[%clk 0:01:02.4]} 25... Qf6 {[%clk 0:01:58.2]} 26. Qd4 {[%clk 0:00:51.8]} 26...
Re8 {[%clk 0:01:53.1]} 27. Rac1 {[%clk 0:00:28.7]} 27... Qg5 {[%clk 0:01:48.1]}
28. Kf1 {[%clk 0:00:20.8]} 28... Qh4 {[%clk 0:01:43.6]} 29. h3 {[%clk 0:00:17]}
29... g5 {[%clk 0:01:15.3]} 30. Rc5 {[%clk 0:00:15.1]} 30... f6 {[%clk
0:01:08.2]} 31. Rc7 {[%clk 0:00:11.7]} 31... g4 {[%clk 0:01:03.6]} 32. Qd5+
{[%clk 0:00:07]} 32... Kh8 {[%clk 0:00:55.3]} 33. Ke1 {[%clk 0:00:02.4]} 33...
gxh3 {[%clk 0:00:50.4]} 34. gxh3 {[%clk 0:00:03.3]} 34... Qxh3 {[%clk
0:00:48.2]} 35. Bf1 {[%clk 0:00:02.2]} 35... Qh5 {[%clk 0:00:44.8]} 36. Be2
{[%clk 0:00:02.3]} 36... Bg4 {[%clk 0:00:42.9]} 37. Bxg4 {[%clk 0:00:01.8]}
37... Qxg4 {[%clk 0:00:42.5]} 38. Kd2 {[%clk 0:00:02.3]} 38... Rc8 {[%clk
0:00:35.9]} 39. Rxc8+ {[%clk 0:00:02]} 39... Qxc8 {[%clk 0:00:36.8]} 40. Rc1
{[%clk 0:00:02.5]} 40... Nf3+ {[%clk 0:00:35.9]} 41. Kd1 {[%clk 0:00:02.9]}
41... Qb8 {[%clk 0:00:33.2]} 42. Qxe4 {[%clk 0:00:03.1]} 42... Ne5 {[%clk
0:00:31.9]} 43. Ke2 {[%clk 0:00:03.1]} 43... Qg8 {[%clk 0:00:31.1]} 44. Rd1
{[%clk 0:00:03.5]} 44... h5 {[%clk 0:00:29.1]} 45. Qd5 {[%clk 0:00:04.1]} 45...
Qg4+ {[%clk 0:00:28.1]} 46. Kd2 {[%clk 0:00:04.5]} 46... Nc4+ {[%clk 0:00:26]}
47. Kc3 {[%clk 0:00:04.8]} 47... Ne5 {[%clk 0:00:23.5]} 48. Qd8+ {[%clk
0:00:05.1]} 48... Kg7 {[%clk 0:00:23.1]} 49. Qc7+ {[%clk 0:00:05.6]} 49... Kh6
{[%clk 0:00:22.4]} 50. Qc5 {[%clk 0:00:05.2]} 50... h4 {[%clk 0:00:20.4]} 51.
Qf8+ {[%clk 0:00:05]} 51... Kg6 {[%clk 0:00:18.4]} 52. Qg8+ {[%clk 0:00:04.8]}
52... Kf5 {[%clk 0:00:18.7]} 53. Qxg4+ {[%clk 0:00:05]} 53... Kxg4 {[%clk
0:00:19.2]} 54. f4 {[%clk 0:00:04.3]} 54... Nf3 {[%clk 0:00:18.9]} 55. Kd3
{[%clk 0:00:02.7]} 55... h3 {[%clk 0:00:18.9]} 56. Ke4 {[%clk 0:00:02.7]} 56...
h2 {[%clk 0:00:18.7]} 57. Rh1 {[%clk 0:00:02.6]} 57... f5+ {[%clk 0:00:16.8]}
58. Kd5 {[%clk 0:00:02.7]} 58... Kg3 {[%clk 0:00:16.3]} 59. Ke6 {[%clk
0:00:02.9]} 59... Nh4 {[%clk 0:00:15.9]} 60. Ke5 {[%clk 0:00:02]} 60... Kg2
{[%clk 0:00:15.8]} 61. Rxh2+ {[%clk 0:00:02.4]} 61... Kxh2 {[%clk 0:00:16.7]}
62. e4 {[%clk 0:00:03]} 62... fxe4 {[%clk 0:00:15.6]} 63. Kxe4 {[%clk
0:00:03.9]} 63... Kg3 {[%clk 0:00:14.9]} 64. f5 {[%clk 0:00:04.1]} 64... Kg4
{[%clk 0:00:15.2]} 65. f6 {[%clk 0:00:03.8]} 65... Ng6 {[%clk 0:00:14.9]} 66. f7
{[%clk 0:00:02.6]} 66... Kg5 {[%clk 0:00:15.2]} 67. Kd5 {[%clk 0:00:02.7]} 67...
Kf6 {[%clk 0:00:15.4]} 68. Kc5 {[%clk 0:00:03.2]} 68... b5 {[%clk 0:00:14.2]}
69. Kb6 {[%clk 0:00:03.1]} 69... Kxf7 {[%clk 0:00:14.7]} 70. Kxa6 {[%clk
0:00:03.4]} 70... Ne5 {[%clk 0:00:15]} 71. Kxb5 {[%clk 0:00:04]} 71... Nd3
{[%clk 0:00:15.1]} 72. Kc4 {[%clk 0:00:04.3]} 72... Nxb4 {[%clk 0:00:15.4]}
1/2-1/2

[Event "*** SCC Grand Prix: Titled Tuesday Blitz"]
[Site "Chess.com"]
[Date "2020.09.29"]
[Round "8"]
[White "GM_Levan_Pantsulaia"]
[Black "fighter2jz"]
[Result "1-0"]
[WhiteElo "2844"]
[BlackElo "2646"]
[TimeControl "180+1"]
[EndTime "11:34:19 PDT"]
[Termination "GM_Levan_Pantsulaia won by resignation"]

1. Nf3 {[%clk 0:03:00.9]} 1... Nf6 {[%clk 0:02:59.1]} 2. g3 {[%clk 0:03:00.8]}
2... g6 {[%clk 0:02:59.3]} 3. b3 {[%clk 0:03:00.8]} 3... Bg7 {[%clk 0:03:00.2]}
4. Bb2 {[%clk 0:03:01]} 4... b6 {[%clk 0:03:00.8]} 5. Bg2 {[%clk 0:03:01]} 5...
Bb7 {[%clk 0:03:01.5]} 6. O-O {[%clk 0:03:01]} 6... O-O {[%clk 0:03:02.1]} 7. d4
{[%clk 0:02:58.7]} 7... e6 {[%clk 0:03:01.3]} 8. c4 {[%clk 0:02:54.8]} 8... d5
{[%clk 0:02:59.5]} 9. cxd5 {[%clk 0:02:54.1]} 9... exd5 {[%clk 0:02:57.6]} 10.
Nc3 {[%clk 0:02:50.6]} 10... Nbd7 {[%clk 0:02:56.5]} 11. Rc1 {[%clk 0:02:51]}
11... a6 {[%clk 0:02:54.1]} 12. e3 {[%clk 0:02:51.3]} 12... Re8 {[%clk
0:02:52.8]} 13. Re1 {[%clk 0:02:51.4]} 13... Rc8 {[%clk 0:02:52.5]} 14. Ne2
{[%clk 0:02:45.4]} 14... c5 {[%clk 0:02:48.8]} 15. dxc5 {[%clk 0:02:45.7]} 15...
bxc5 {[%clk 0:02:49.7]} 16. Nf4 {[%clk 0:02:44.9]} 16... Qa5 {[%clk 0:02:21.3]}
17. a3 {[%clk 0:02:41]} 17... Qb6 {[%clk 0:02:19.7]} 18. Qc2 {[%clk 0:02:40.2]}
18... a5 {[%clk 0:01:58.3]} 19. Red1 {[%clk 0:02:37.5]} 19... c4 {[%clk
0:01:38.9]} 20. bxc4 {[%clk 0:02:36.6]} 20... Rxc4 {[%clk 0:01:28]} 21. Qb1
{[%clk 0:02:36]} 21... Qc7 {[%clk 0:01:16.8]} 22. Nd2 {[%clk 0:02:14.7]} 22...
Rxc1 {[%clk 0:01:08.7]} 23. Rxc1 {[%clk 0:02:15.4]} 23... Qb8 {[%clk 0:01:07.1]}
24. Nb3 {[%clk 0:02:11.5]} 24... a4 {[%clk 0:00:56.9]} 25. Nd4 {[%clk
0:02:07.2]} 25... Ne5 {[%clk 0:00:55.9]} 26. Bc3 {[%clk 0:02:03.6]} 26... Nc4
{[%clk 0:00:54.1]} 27. Bb4 {[%clk 0:02:03.8]} 27... Rc8 {[%clk 0:00:48.6]} 28.
Nb5 {[%clk 0:01:33.7]} 28... Ne4 {[%clk 0:00:45.4]} 29. Nd4 {[%clk 0:01:16.4]}
29... Ncd2 {[%clk 0:00:35.2]} 30. Rxc8+ {[%clk 0:01:02.9]} 30... Qxc8 {[%clk
0:00:36.1]} 31. Qd1 {[%clk 0:01:02.6]} 31... Bxd4 {[%clk 0:00:26.8]} 32. exd4
{[%clk 0:00:53.6]} 32... Nb3 {[%clk 0:00:25.7]} 33. Bf1 {[%clk 0:00:52.3]} 33...
Qf5 {[%clk 0:00:14]} 34. Qd3 {[%clk 0:00:46.8]} 34... g5 {[%clk 0:00:13.3]} 35.
Nh3 {[%clk 0:00:43.5]} 35... Bc8 {[%clk 0:00:13.5]} 36. f3 {[%clk 0:00:41.7]}
36... Nd6 {[%clk 0:00:11.4]} 37. Bxd6 {[%clk 0:00:39.1]} 37... Qxd3 {[%clk
0:00:09.3]} 38. Bxd3 {[%clk 0:00:39.7]} 38... Bxh3 {[%clk 0:00:10]} 39. Be5
{[%clk 0:00:39.3]} 39... Be6 {[%clk 0:00:09.5]} 40. Bb5 {[%clk 0:00:38.7]} 40...
Nd2 {[%clk 0:00:09.1]} 41. Bxa4 {[%clk 0:00:34.3]} 41... Nxf3+ {[%clk
0:00:08.9]} 42. Kg2 {[%clk 0:00:34.7]} 42... Ne1+ {[%clk 0:00:08.4]} 43. Kf2
{[%clk 0:00:30.9]} 43... Nd3+ {[%clk 0:00:07.9]} 44. Ke3 {[%clk 0:00:29.4]}
44... Nb2 {[%clk 0:00:07.9]} 45. Bb5 {[%clk 0:00:27.4]} 45... Nc4+ {[%clk
0:00:08]} 46. Bxc4 {[%clk 0:00:25.5]} 46... dxc4 {[%clk 0:00:08.9]} 47. Bf6
{[%clk 0:00:23.4]} 47... Bd5 {[%clk 0:00:09.1]} 48. Bxg5 {[%clk 0:00:22.4]}
48... Kg7 {[%clk 0:00:09.5]} 49. a4 {[%clk 0:00:21.9]} 49... f6 {[%clk
0:00:09.8]} 50. Bh4 {[%clk 0:00:19.2]} 50... Kf7 {[%clk 0:00:10.2]} 51. a5
{[%clk 0:00:19.1]} 51... Ke6 {[%clk 0:00:10.4]} 52. a6 {[%clk 0:00:19.1]} 52...
Kf5 {[%clk 0:00:10.3]} 53. a7 {[%clk 0:00:17.9]} 53... Ke6 {[%clk 0:00:10.4]}
54. g4 {[%clk 0:00:16.8]} 54... f5 {[%clk 0:00:09.7]} 55. g5 {[%clk 0:00:16.7]}
55... Be4 {[%clk 0:00:09.8]} 56. Be1 {[%clk 0:00:16.5]} 56... Kd7 {[%clk
0:00:09]} 57. h4 {[%clk 0:00:13.9]} 57... Ke6 {[%clk 0:00:09.2]} 58. h5 {[%clk
0:00:13.6]} 58... Kf7 {[%clk 0:00:09.5]} 59. Kf4 {[%clk 0:00:13.8]} 59... Ke6
{[%clk 0:00:08.5]} 60. Bb4 {[%clk 0:00:13.6]} 60... Kf7 {[%clk 0:00:07.9]} 61.
Ke5 {[%clk 0:00:13.1]} 61... Kg7 {[%clk 0:00:07.4]} 62. Bd2 {[%clk 0:00:13]}
62... Kf7 {[%clk 0:00:07.4]} 63. d5 {[%clk 0:00:13.4]} 1-0